Workbook

Sheet Sales 2022_23 bulk template
A1: Question | B1: What is the purchaser code? | C1: What is the day of the sale completion date? - DD | D1: What is the month of the sale completion date? - MM | E1: What is the year of the sale completion date? - YY | F1: [BLANK] | G1: Was the buyer interviewed for any of the answers you will provide on this log? | H1: Age of Buyer 1 | I1: Age of Buyer 2 or Person 2 | J1: Age of Person 3 | K1: Age of Person 4 | L1: Age of Person 5 | M1: Age of Person 6 | N1: Gender identity of Buyer 1 | O1: Gender identity of Buyer 2 or Person 2 | P1: Gender identity of Person 3 | Q1: Gender identity of Person 4 | R1: Gender identity of Person 5 | S1: Gender identity of Person 6 | T1: Person 2's relationship to lead tenant | U1: Person 3's relationship to lead tenant | V1: Person 4's relationship to lead tenant | W1: Person 5's relationship to lead tenant | X1: Person 6's relationship to lead tenant | Y1: Working situation of Buyer 1 | Z1: Working situation of Buyer 2 or Person 2 | AA1: Working situation of Person 3 | AB1: Working situation of Person 4 | AC1: Working situation of Person 5 | AD1: Working situation of Person 6 | AE1: What is the buyer 1's ethnic group? | AF1: What is buyer 1's nationality? | AG1: What is buyer 1's gross annual income? | AH1: What is buyer 2's gross annual income? | AI1: Was buyer 1's income used for a mortgage application? | AJ1: Was buyer 2's income used for a mortgage application? | AK1: What is the total amount the buyers had in savings before they paid any deposit for the property? To the nearest £10 | AL1: Have any of the buyers previously owned a property? | AM1: [BLANK] | AN1: What was buyer 1's previous tenure? | AO1: What is the local authority of buyer 1's last settled home | AP1: Part 1 of postcode of buyer 1's last settled home | AQ1: Part 2 of postcode of buyer 1's last settled home | AR1: Do you know the postcode of buyer 1's last settled home? | AS1: Was the buyer registered with their PRP (HA)? | AT1: Was the buyer registered with the local authority? | AU1: Was the buyer registered with a Help to Buy agent? | AV1: Was the buyer registered with another PRP (HA)? | AW1: Does anyone in the household consider themselves to have a disability? | AX1: Does anyone in the household use a wheelchair? | AY1: How many bedrooms does the property have? | AZ1: What type of unit is the property? | BA1: Which type of building is the property? | BB1: What is the local authority of the property? | BC1: Part 1 of postcode of property | BD1: Part 2 of postcode of property | BE1: Is the property built or adapted to wheelchair-user standards? | BF1: What is the type of shared ownership sale? | BG1: Is this a resale? Shared ownership | BH1: What is the day of the practical completion or handover date? - DD Shared ownership | BI1: What is the month of the practical completion or handover date? - MM Shared ownership | BJ1: What is the year of the practical completion or handover date? - YY Shared ownership | BK1: What is the day of the exchange of contracts date? - DD Shared ownership | BL1: What is the month of the exchange of contracts date? - MM Shared ownership | BM1: What is the year of the exchange of contracts date? - YY Shared ownership | BN1: Was the household re-housed under a local authority nominations agreement? Shared ownership | BO1: How many bedrooms did the buyer's previous property have? Shared ownership | BP1: What was the type of the buyer's previous property? Shared ownership | BQ1: What was the full purchase price? Shared ownership | BR1: What was the initial percentage equity stake purchased? Shared ownership | BS1: What is the mortgage amount? Shared ownership | BT1: Does this include any extra borrowing? Shared ownership | BU1: How much was the cash deposit paid on the property? Shared ownership | BV1: How much cash discount was given through Social Homebuy? Shared ownership | BW1: What is the basic monthly rent? Shared ownership | BX1: What are the total monthly leasehold charges for the property? Shared ownership | BY1: What is the type of discounted ownership sale? | BZ1: What was the full purchase price? Discounted ownership | CA1: What was the amount of any loan, grant, discount or subsidy given? Discounted ownership | CB1: What was the percentage discount? Discounted ownership | CC1: What is the mortgage amount? Discounted ownership | CD1: Does this include any extra borrowing? Discounted ownership | CE1: How much was the cash deposit paid on the property? Discounted ownership | CF1: What are the total monthly leasehold charges for the property? Discounted ownership | CG1: What is the type of outright sale? | CH1: What is the 'other' type of outright sale? Outright sale | CI1: [BLANK] | CJ1: What is the full purchase price? Outright sale | CK1: What is the mortgage amount? Outright sale | CL1: Does this include any extra borrowing? Outright sale | CM1: How much was the cash deposit paid on the property? Outright sale | CN1: What are the total monthly leasehold charges for the property? Outright sale | CO1: Which organisation owned this property before the sale? Organisation's CORE ID | CP1: Username | CQ1: BLANK | CR1: Has the buyer ever served in the UK Armed Forces and for how long? | CS1: [BLANK] | CT1: Are any of the buyers a spouse or civil partner of a UK Armed Forces regular who died in service within the last 2 years? | CU1: What is the name of the mortgage lender? Shared ownership | CV1: What is the name of the 'other' mortgage lender? Shared ownership | CW1: What is the name of the mortgage lender? Discounted ownership | CX1: What is the name of the 'other' mortgage lender? Discounted ownership | CY1: What is the name of the mortgage lender? Outright sale | CZ1: What is the name of the 'other' mortgage lender? Outright sale | DA1: Were the buyers receiving any of these housing-related benefits immediately before buying this property? | DB1: What is the length of the mortgage in years? Shared ownership | DC1: What is the length of the mortgage in years? Discounted ownership | DD1: What is the length of the mortgage in years? Outright sale | DE1: How long have the buyers been living in the property before the purchase? Discounted ownership | DF1: Are there more than two joint purchasers of this property? | DG1: How long have the buyers been living in the property before the purchase? Shared ownership | DH1: Is this a staircasing transaction? | DI1: Data Protection question | DJ1: Was this purchase made through an ownership scheme? | DK1: Is the buyer a company? Outright sale | DL1: Will the buyers live in the property? | DM1: Is this a joint purchase? | DN1: Will buyer 1 live in the property? | DO1: Will buyer 2 live in the property? | DP1: Besides the buyers, how many people live in the property? | DQ1: What percentage of the property has been bought in this staircasing transaction? Shared ownership | DR1: What percentage of the property does the buyer now own in total? Shared ownership | DS1: What was the rent type of the buyer's previous property? Shared ownership | DT1: Was a mortgage used for the purchase of this property? Shared ownership | DU1: Was a mortgage used for the purchase of this property? Discounted ownership | DV1: Was a mortgage used for the purchase of this property? Outright sale
A2: Values | B2: Max 9 digits | C2: 1 - 31 | D2: 1 - 12 | E2: 19 - 23 | G2: 1 or null | H2: 15 - 110 or R | I2: 1 - 110 or R | N2: M, F, X or R | T2: P, C, X or R | Y2: 0 - 10 | AE2: 1 - 19 | AF2: 12 -13, 17 -19 | AG2: 0 - 99999 | AI2: 1 or 2 | AJ2: 1 or 2 | AK2: 0 - 999990 | AL2: 1 - 3 | AN2: 1 - 7 or 9 | AO2: ONS CODE - E + 9 digits | AP2: XXX(X) | AQ2: XXX | AR2: 1 or null | AW2: 1 - 3 | AX2: 1 - 3 | AY2: 1 - 9 | AZ2: 1 - 4 or 9 | BA2: 1 or 2 | BB2: ONS CODE E + 9 digits | BC2: XXX(X) | BD2: XXX | BE2: 1 - 3 | BF2: 2, 16, 18, 24, 28 or 30-31 | BG2: 1 or 2 | BH2: 1 - 31 | BI2: 1 - 12 | BJ2: 19 - 23 | BK2: 1 - 31 | BL2: 1 - 12 | BM2: 19 - 23 | BN2: 1 - 3 | BO2: 1 - 9 | BP2: 1 - 4 or 9 | BQ2: 0 - 999999 | BR2: 0 - 100 | BS2: 0 - 999999 | BT2: 1 - 3 | BU2: 0 - 999999 | BW2: 0 - 999.99 | BY2: 8, 9, 14, 21, 22, 27 or 29 | BZ2: 0 - 999999 | CB2: 0 - 100 | CC2: 0 - 999999 | CD2: 1 - 3 | CE2: 0 - 999999 | CF2: 0 - 999.99 | CG2: 10 or 12 | CJ2: 0 - 999999 | CL2: 1-3 | CM2: 0 - 999999 | CN2: 0-999.99 | CO2: Up to 7 digits | CP2: Username of CORE account this sales log should be assigned to | CR2: 3 - 8 | CT2: 4 - 7 | CU2: 1 - 40 | CW2: 1 - 40 | CY2: 1 - 40 | DA2: 1 - 4 | DB2: Integer <=60 | DC2: Integer <=60 | DD2: Integer <=60 | DE2: Integer <=80 | DF2: 1 - 3 | DG2: Integer <=80 | DH2: 1 - 3 | DI2: 1 | DJ2: 1 - 3 | DK2: 1 - 2 | DL2: 1 - 2 | DM2: 1 - 2 | DN2: 1 - 2 | DO2: 1 - 2 | DP2: 0 - 5 | DQ2: 1 - 100 | DR2: 1 - 100 | DS2: 1-3 or 9-10 | DT2: 1 - 2 | DU2: 1 - 2 | DV2: 1 - 2
A3: Can be Null? | B3: No | G3: No | H3: No | I3: If fields 14, 19 and 25 are all also null | J3: If fields 15, 20 and 26 are all also null | K3: If fields 16, 21 and 27 are all also null | L3: If fields 17, 22 and 28 are all also null | M3: If fields 18, 23 and 29 are all also null | N3: No | O3: If fields 8, 19 and 25 are all also null | P3: If fields 9, 20 and 26 are also null | Q3: If fields 10, 21 and 27 are all also null | R3: If fields 11, 22 and 28 are all also null | S3: If fields 12, 23 and 29 are all also null | T3: If fields 8, 14 and 25 are all also null | U3: If fields 9, 15 and 26 are all also null | V3: If fields 10, 16 and 27 are all also null | W3: If fields 11, 17 and 28 are all also null | X3: If fields 12, 18 and 29 are all also null | Y3: If field 6 = 1 | Z3: If fields 8, 14 and 19 are all also null | AA3: If fields 9, 15 and 20 are all also null | AB3: If fields 10, 16 and 21 are all also null | AC3: If fields 11, 17 and 22 are all also null | AD3: If fields 12, 18 and 23 are all also null | AE3: If field 6 = 1 | AH3: If field 116 = 2 | AI3: If field 32 is null | AJ3: If field 116 = 2 | AK3: If field 6 = 1 | AN3: If field 6 = 1 | AO3: No | AP3: If field 43 = 1 | AR3: If fields 41 and 42 BOTH have valid entries | AS3: Yes | AW3: If field 6 = 1 | AY3: No | BF3: If field 113 = 2 or 3 | BO3: If field 113 = 2 or 3 OR field 39 = 3 - 7 or 9 | BQ3: If field 113 = 2 or 3 | BV3: If field 57 is null, 2, 16, 24 or 28 | BW3: If field 113 = 2 or 3 | BY3: If field 113 = 1 or 3 | BZ3: If field 76 is null | CA3: If field 76 is null, 9 or 14 | CB3: If field 76 is null, 8, 21 or 22 | CC3: If field 113 = 1 or 3 | CG3: If field 113 = 1 or 2 | CH3: If field 84 is null or 10 | CJ3: If field 113 = 1 or 2 | CO3: No | CP3: Yes | CR3: No | CT3: No | CU3: If field 113 = 2 or 3 | CV3: If field 113 = 2 or 3 OR If field 98 is not 40 | CW3: If field 113 = 1 or 3 | CX3: If field 113 = 1 or 3 OR If field 100 is not 40 | CY3: If field 113 = 1 or 2 | CZ3: If field 113 = 1 or 2 OR If field 102 is not 40 | DA3: No | DB3: If field 113 = 2 or 3 | DC3: If field 113 = 1 or 3 | DD3: If field 113 = 1 or 2 | DE3: If field 113 = 1 or 3 | DF3: If field 116 = 2 | DG3: If field 113 = 2 or 3 | DH3: If field 113 = 2 or 3 | DI3: No | DJ3: No | DK3: If field 113 = 1 or 2 | DL3: If field 113 = 1 or 2 | DM3: No | DN3: No | DO3: If field 116 = 2 | DP3: No | DQ3: If field 113 = 2 or 3 | DR3: If field 113 = 2 or 3 | DS3: If field 113 = 1 or 2 OR If field 39 = 3 - 9 | DT3: If field 113 = 2 or 3 | DU3: If field 113 = 1 or 3 | DV3: If field 113 = 1 or 2
A4: Bulk upload format and duplicate check | B4: Yes
A5: Field number | B5: 1 | C5: =B5+1 -> 2 | D5: =C5+1 -> 3 | E5: =D5+1 -> 4 | F5: =E5+1 -> 5 | G5: =F5+1 -> 6 | H5: =G5+1 -> 7 | I5: =H5+1 -> 8 | J5: =I5+1 -> 9 | K5: =J5+1 -> 10 | L5: =K5+1 -> 11 | M5: =L5+1 -> 12 | N5: =M5+1 -> 13 | O5: =N5+1 -> 14 | P5: =O5+1 -> 15 | Q5: =P5+1 -> 16 | R5: =Q5+1 -> 17 | S5: =R5+1 -> 18 | T5: =S5+1 -> 19 | U5: =T5+1 -> 20 | V5: =U5+1 -> 21 | W5: =V5+1 -> 22 | X5: =W5+1 -> 23 | Y5: =X5+1 -> 24 | Z5: =Y5+1 -> 25 | AA5: =Z5+1 -> 26 | AB5: =AA5+1 -> 27 | AC5: =AB5+1 -> 28 | AD5: =AC5+1 -> 29 | AE5: =AD5+1 -> 30 | AF5: =AE5+1 -> 31 | AG5: =AF5+1 -> 32 | AH5: =AG5+1 -> 33 | AI5: =AH5+1 -> 34 | AJ5: =AI5+1 -> 35 | AK5: =AJ5+1 -> 36 | AL5: =AK5+1 -> 37 | AM5: =AL5+1 -> 38 | AN5: =AM5+1 -> 39 | AO5: =AN5+1 -> 40 | AP5: =AO5+1 -> 41 | AQ5: =AP5+1 -> 42 | AR5: =AQ5+1 -> 43 | AS5: =AR5+1 -> 44 | AT5: =AS5+1 -> 45 | AU5: =AT5+1 -> 46 | AV5: =AU5+1 -> 47 | AW5: =AV5+1 -> 48 | AX5: =AW5+1 -> 49 | AY5: =AX5+1 -> 50 | AZ5: =AY5+1 -> 51 | BA5: =AZ5+1 -> 52 | BB5: =BA5+1 -> 53 | BC5: =BB5+1 -> 54 | BD5: =BC5+1 -> 55 | BE5: =BD5+1 -> 56 | BF5: =BE5+1 -> 57 | BG5: =BF5+1 -> 58 | BH5: =BG5+1 -> 59 | BI5: =BH5+1 -> 60 | BJ5: =BI5+1 -> 61 | BK5: =BJ5+1 -> 62 | BL5: =BK5+1 -> 63 | BM5: =BL5+1 -> 64 | BN5: =BM5+1 -> 65 | BO5: =BN5+1 -> 66 | BP5: =BO5+1 -> 67 | BQ5: =BP5+1 -> 68 | BR5: =BQ5+1 -> 69 | BS5: =BR5+1 -> 70 | BT5: =BS5+1 -> 71 | BU5: =BT5+1 -> 72 | BV5: =BU5+1 -> 73 | BW5: =BV5+1 -> 74 | BX5: =BW5+1 -> 75 | BY5: =BX5+1 -> 76 | BZ5: =BY5+1 -> 77 | CA5: =BZ5+1 -> 78 | CB5: =CA5+1 -> 79 | CC5: =CB5+1 -> 80 | CD5: =CC5+1 -> 81 | CE5: =CD5+1 -> 82 | CF5: =CE5+1 -> 83 | CG5: =CF5+1 -> 84 | CH5: =CG5+1 -> 85 | CI5: =CH5+1 -> 86 | CJ5: =CI5+1 -> 87 | CK5: =CJ5+1 -> 88 | CL5: =CK5+1 -> 89 | CM5: =CL5+1 -> 90 | CN5: =CM5+1 -> 91 | CO5: =CN5+1 -> 92 | CP5: =CO5+1 -> 93 | CQ5: =CP5+1 -> 94 | CR5: =CQ5+1 -> 95 | CS5: =CR5+1 -> 96 | CT5: =CS5+1 -> 97 | CU5: =CT5+1 -> 98 | CV5: =CU5+1 -> 99 | CW5: =CV5+1 -> 100 | CX5: =CW5+1 -> 101 | CY5: =CX5+1 -> 102 | CZ5: =CY5+1 -> 103 | DA5: =CZ5+1 -> 104 | DB5: =DA5+1 -> 105 | DC5: =DB5+1 -> 106 | DD5: =DC5+1 -> 107 | DE5: =DD5+1 -> 108 | DF5: =DE5+1 -> 109 | DG5: =DF5+1 -> 110 | DH5: =DG5+1 -> 111 | DI5: 112 | DJ5: =DI5+1 -> 113 | DK5: =DJ5+1 -> 114 | DL5: =DK5+1 -> 115 | DM5: =DL5+1 -> 116 | DN5: =DM5+1 -> 117 | DO5: =DN5+1 -> 118 | DP5: =DO5+1 -> 119 | DQ5: =DP5+1 -> 120 | DR5: =DQ5+1 -> 121 | DS5: =DR5+1 -> 122 | DT5: =DS5+1 -> 123 | DU5: =DT5+1 -> 124 | DV5: =DU5+1 -> 125
